Workbook

Sheet паспорт
A1: ПАТ "УКРТРАНСГАЗ" | G1: ПАСПОРТ ФІЗИКО-ХІМІЧНИХ ПОКАЗНИКІВ ПРИРОДНОГО ГАЗУ № 645
A2: Філія "УМГ "ХАРКІВТРАНСГАЗ" | G2: переданого Сєвєродонецьким ЛВУМГ та прийнятого ПАТ "Луганськгаз"
A3: Сєвєродонецьке ЛВУМГ | G3: Маршрут № 645
A4: Вимірювальна хіміко-аналітична лабораторія
A5: Свідоцтво № РЬ089/2014 чинно до 06.06.2017 р. | K5: по газопроводу "Краснопопівка-Рубіжне" | V5: за період з | X5: 01.03.2017 р. | Z5: по | AA5: 31.03.2017 р.
A7: Число місяця | B7: Компонентний склад, мол. % | N7: Фізико-хімічні показники газу обчислені на основі компонентного складу, 101,325 кПа | X7: Температура точки роси за вологою (Р = 3.92 МПа), °С | Y7: Температура точки роси за вуглеводнями, °С | Z7: Вміст сірководню, г/м3 | AA7: Вміст меркаптанової сірки, г/м3 | AB7: Вміст механічних домішок, г/м3
N8: Густина абсолютна, кг/м3,при 20 °С, | O8: Температура вимірювання/згоряння при 20/25°С
B9: метан, С1 | C9: етан, С2 | D9: пропан, С3 | E9: ізо-бутан, і-С4 | F9: н-бутан, н-С4 | G9: нео-пентан, нео-С5 | H9: ізо-пентан, і-С5 | I9: н-пентан, н-С5 | J9: гексани та вищі, С6+ | K9: кисень, О2 | L9: азот, N2 | M9: діоксид вуглецю, CО2 | O9: Теплота згоряння нижча | R9: Теплота згоряння вища | U9: Число Воббе вище
O10: ккал/м³ | P10: МДж/м³ | Q10: кВт⋅год/м³ | R10: ккал/м³ | S10: МДж/м³ | T10: кВт⋅год/м³ | U10: ккал/м³ | V10: МДж/м³ | W10: кВт⋅год/м³
A11: 1 | B11: 91.0902 | C11: 3.4835 | D11: 1.1221 | E11: 0.1478 | F11: 0.2612 | G11: 0.0076 | H11: 0.0623 | I11: 0.0534 | J11: 0.0875 | K11: 0.008 | L11: 2.6658 | M11: 1.0106 | N11: 0.7396 | O11: =P11*238.8459 -> 8180.18546 | P11: 34.2488 | Q11: =P11/3.6 -> 9.513555556 | R11: =S11*238.8459 -> 9727.405316 | S11: 40.7267 | T11: =S11/3.6 -> 11.31297222 | U11: =V11/0.0041868 -> 11560.1414 | V11: 48.4 | W11: =V11/3.6 -> 13.44444444 | X11: -2.3 | Y11: -4.8 | AC11: =SUM(B11:M11)+$K$42+$N$42 -> 100
A12: 2 | O12: =P12*238.8459 -> 8180.18546 | P12: 34.2488 | Q12: =P12/3.6 -> 9.513555556 | R12: =S12*238.8459 -> 9727.405316 | S12: 40.7267 | T12: =S12/3.6 -> 11.31297222 | U12: =V12/0.0041868 -> 11560.1414 | V12: 48.4 | W12: =V12/3.6 -> 13.44444444 | AC12: 0
A13: 3 | O13: 8180.18546 | P13: 34.2488 | Q13: 9.513555556 | R13: 9727.405316 | S13: 40.7267 | T13: 11.31297222 | U13: 11560.1414 | V13: 48.4 | W13: 13.44444444 | AC13: 0 | AD13: =IF(AC13=100,"ОК"," ") -> 
A14: 4 | O14: 8180.18546 | P14: 34.2488 | Q14: 9.513555556 | R14: 9727.405316 | S14: 40.7267 | T14: 11.31297222 | U14: 11560.1414 | V14: 48.4 | W14: 13.44444444 | AC14: 0 | AD14: =IF(AC14=100,"ОК"," ") -> 
A15: 5 | O15: 8180.18546 | P15: 34.2488 | Q15: 9.513555556 | R15: 9727.405316 | S15: 40.7267 | T15: 11.31297222 | U15: 11560.1414 | V15: 48.4 | W15: 13.44444444 | AC15: 0
A16: 6 | B16: 91.3811 | C16: 3.3523 | D16: 1.0901 | E16: 0.142 | F16: 0.247 | G16: 0.0076 | H16: 0.0631 | I16: 0.0542 | J16: 0.0839 | K16: 0.0114 | L16: 2.7727 | M16: 0.7946 | N16: 0.7361 | O16: =P16*238.8459 -> 8171.945276 | P16: 34.2143 | Q16: =P16/3.6 -> 9.503972222 | R16: =S16*238.8459 -> 9718.639671 | S16: 40.69 | T16: =S16/3.6 -> 11.30277778 | U16: =V16/0.0041868 -> 11576.86061 | V16: 48.47 | W16: =V16/3.6 -> 13.46388889 | AC16: 100 | AD16: ОК
A17: 7 | O17: =P17*238.8459 -> 8171.945276 | P17: 34.2143 | Q17: =P17/3.6 -> 9.503972222 | R17: =S17*238.8459 -> 9718.639671 | S17: 40.69 | T17: =S17/3.6 -> 11.30277778 | U17: =V17/0.0041868 -> 11576.86061 | V17: 48.47 | W17: =V17/3.6 -> 13.46388889 | AC17: 0
A18: 8 | O18: 8171.945276 | P18: 34.2143 | Q18: 9.503972222 | R18: 9718.639671 | S18: 40.69 | T18: 11.30277778 | U18: 11576.86061 | V18: 48.47 | W18: 13.46388889 | AC18: 0
A19: 9 | O19: 8171.945276 | P19: 34.2143 | Q19: 9.503972222 | R19: 9718.639671 | S19: 40.69 | T19: 11.30277778 | U19: 11576.86061 | V19: 48.47 | W19: 13.46388889 | AC19: 0
A20: 10 | O20: 8171.945276 | P20: 34.2143 | Q20: 9.503972222 | R20: 9718.639671 | S20: 40.69 | T20: 11.30277778 | U20: 11576.86061 | V20: 48.47 | W20: 13.46388889 | AC20: 0
A21: 11 | O21: 8171.945276 | P21: 34.2143 | Q21: 9.503972222 | R21: 9718.639671 | S21: 40.69 | T21: 11.30277778 | U21: 11576.86061 | V21: 48.47 | W21: 13.46388889 | AC21: 0
A22: 12 | O22: 8171.945276 | P22: 34.2143 | Q22: 9.503972222 | R22: 9718.639671 | S22: 40.69 | T22: 11.30277778 | U22: 11576.86061 | V22: 48.47 | W22: 13.46388889 | AC22: 0
A23: 13 | B23: 91.2639 | C23: 3.3858 | D23: 1.0961 | E23: 0.1449 | F23: 0.2552 | G23: 0.003 | H23: 0.0589 | I23: 0.0536 | J23: 0.087 | K23: 0.0106 | L23: 2.6892 | M23: 0.9518 | N23: 0.7378 | O23: 8169.724009 | P23: 34.205 | Q23: =P23/3.6 -> 9.501388889 | R23: 9715.463021 | S23: 40.6767 | T23: =S23/3.6 -> 11.29908333 | U23: 11559.63982 | V23: 48.3979 | W23: 13.44386111 | AC23: 100 | AD23: ОК
A24: 14 | O24: 8174.596466 | P24: 34.2254 | Q24: 9.507055556 | R24: 9721.02813 | S24: 40.7 | T24: 11.30555556 | U24: 11552.28337 | V24: 48.3671 | W24: 13.43530556 | AC24: 0
A25: 15 | O25: 8174.596466 | P25: 34.2254 | Q25: 9.507055556 | R25: 9721.02813 | S25: 40.7 | T25: 11.30555556 | U25: 11552.28337 | V25: 48.3671 | W25: 13.43530556 | AC25: 0
A26: 16 | O26: 8174.596466 | P26: 34.2254 | Q26: =P26/3.6 -> 9.507055556 | R26: 9721.02813 | S26: 40.7 | T26: =S26/3.6 -> 11.30555556 | U26: 11552.28337 | V26: 48.3671 | W26: 13.43530556 | AC26: 0
A27: 17 | O27: 8174.596466 | P27: 34.2254 | Q27: 9.507055556 | R27: 9721.02813 | S27: 40.7 | T27: 11.30555556 | U27: 11552.28337 | V27: 48.3671 | W27: 13.43530556 | AC27: 0
A28: 18 | O28: 8174.596466 | P28: 34.2254 | Q28: 9.507055556 | R28: 9721.02813 | S28: 40.7 | T28: 11.30555556 | U28: 11552.28337 | V28: 48.3671 | W28: 13.43530556 | AC28: 0
A29: 19 | O29: 8174.596466 | P29: 34.2254 | Q29: 9.507055556 | R29: 9721.02813 | S29: 40.7 | T29: 11.30555556 | U29: 11552.28337 | V29: 48.3671 | W29: 13.43530556 | AC29: 0
A30: 20 | B30: 91.2672 | C30: 3.406 | D30: 1.1045 | E30: 0.145 | F30: 0.2528 | G30: 0.0085 | H30: 0.0644 | I30: 0.0538 | J30: 0.0829 | K30: 0.011 | L30: 2.7926 | M30: 0.8113 | N30: 0.737 | O30: 8175.957887 | P30: 34.2311 | Q30: 9.508638889 | R30: 9722.723936 | S30: 40.7071 | T30: 11.30752778 | U30: 11574.61546 | V30: 48.4606 | W30: 13.46127778 | Z30: 0.0001 | AA30: 0.002 | AB30: відс | AC30: 100 | AD30: =IF(AC30=100,"ОК"," ") -> ОК
A31: 21 | O31: =P31*238.8459 -> 8175.957887 | P31: 34.2311 | Q31: =P31/3.6 -> 9.508638889 | R31: =S31*238.8459 -> 9722.723936 | S31: 40.7071 | T31: =S31/3.6 -> 11.30752778 | U31: =V31/0.0041868 -> 11574.61546 | V31: 48.4606 | W31: =V31/3.6 -> 13.46127778 | AC31: 0
A32: 22 | O32: 8175.957887 | P32: 34.2311 | Q32: 9.508638889 | R32: 9722.723936 | S32: 40.7071 | T32: 11.30752778 | U32: 11574.61546 | V32: 48.4606 | W32: 13.46127778 | AC32: 0
A33: 23 | O33: 8175.957887 | P33: 34.2311 | Q33: 9.508638889 | R33: 9722.723936 | S33: 40.7071 | T33: 11.30752778 | U33: 11574.61546 | V33: 48.4606 | W33: 13.46127778 | AC33: 0 | AD33: =IF(AC33=100,"ОК"," ") -> 
A34: 24 | O34: 8175.957887 | P34: 34.2311 | Q34: 9.508638889 | R34: 9722.723936 | S34: 40.7071 | T34: 11.30752778 | U34: 11574.61546 | V34: 48.4606 | W34: 13.46127778 | AC34: 0
A35: 25 | O35: 8175.957887 | P35: 34.2311 | Q35: 9.508638889 | R35: 9722.723936 | S35: 40.7071 | T35: 11.30752778 | U35: 11574.61546 | V35: 48.4606 | W35: 13.46127778 | AC35: 0
A36: 26 | O36: 8175.957887 | P36: 34.2311 | Q36: 9.508638889 | R36: 9722.723936 | S36: 40.7071 | T36: 11.30752778 | U36: 11574.61546 | V36: 48.4606 | W36: 13.46127778 | AC36: 0
A37: 27 | B37: 91.4385 | C37: 3.3271 | D37: 1.0798 | E37: 0.144 | F37: 0.2471 | G37: 0.0079 | H37: 0.0638 | I37: 0.054 | J37: 0.0842 | K37: 0.0108 | L37: 2.7522 | M37: 0.7906 | N37: 0.7357 | O37: 8171.778084 | P37: 34.2136 | Q37: 9.503777778 | R37: 9718.11421 | S37: 40.6878 | T37: 11.30216667 | U37: 11579.39238 | V37: 48.4806 | W37: 13.46683333 | AC37: 100 | AD37: ОК
A38: 28 | O38: =P38*238.8459 -> 8171.778084 | P38: 34.2136 | Q38: =P38/3.6 -> 9.503777778 | R38: =S38*238.8459 -> 9718.11421 | S38: 40.6878 | T38: =S38/3.6 -> 11.30216667 | U38: =V38/0.0041868 -> 11579.39238 | V38: 48.4806 | W38: =V38/3.6 -> 13.46683333 | AC38: 0
A39: 29 | O39: 8171.778084 | P39: 34.2136 | Q39: 9.503777778 | R39: 9718.11421 | S39: 40.6878 | T39: 11.30216667 | U39: 11579.39238 | V39: 48.4806 | W39: 13.46683333 | AC39: 0
A40: 30 | O40: 8171.778084 | P40: 34.2136 | Q40: 9.503777778 | R40: 9718.11421 | S40: 40.6878 | T40: 11.30216667 | U40: 11579.39238 | V40: 48.4806 | W40: 13.46683333 | AC40: 0
A41: 31 | O41: 8171.778084 | P41: 34.2136 | Q41: 9.503777778 | R41: 9718.11421 | S41: 40.6878 | T41: 11.30216667 | U41: 11579.39238 | V41: 48.4806 | W41: 13.46683333 | AC41: 0
A42: Рівень одоризації відповідає чинним нормативним документам | O42: =SUMPRODUCT(O11:O41,' розрахунок'!D7:D37)/' розрахунок'!D38 -> 8174.620566 | P42: =SUMPRODUCT(P11:P41,' розрахунок'!D7:D37)/' розрахунок'!D38 -> 34.2255009 | Q42: =SUMPRODUCT(Q11:Q41,' розрахунок'!D7:D37)/' розрахунок'!D38 -> 9.507083584 | R42: =SUMPRODUCT(R11:R41,' розрахунок'!D7:D37)/' розрахунок'!D38 -> 9721.277749 | S42: =SUMPRODUCT(S11:S41,' розрахунок'!D7:D37)/' розрахунок'!D38 -> 40.7010451 | T42: =SUMPRODUCT(T11:T41,' розрахунок'!D7:D37)/' розрахунок'!D38 -> 11.30584586
H43: Середньозважене значення теплоти згоряння:
B46: Начальник управління Сєвєродонецького ЛВУМГ Головко Ю.О.
C47: Підрозділу підприємства, якому підпорядкована лабораторія | O47: прізвище | R47: підпис | V47: дата
B48: Інженер ІІ кат.вимірювальної хіміко-аналітичної лабораторії Єрьоменко М.О.
C49: Лабораторія, де здійснювалось вимірювання газу | O49: прізвище | R49: підпис | V49: дата
B50: Начальник служби метрології Ісаєв В.С.
C51: Підрозділу, відповідального за облік газу за маршрутом | O51: прізвище | R51: підпис | V51: дата

Sheet розрахунок (hidden)
A2: Додаток до Паспорту фізико-хімічних показників природного газу по маршруту № 645
A4: Число місяця | B4: Теплота згоряння вища, МДж/м3 | C4: Луганська область | D4: Загальний обсяг газу, м3
C5: Обсяг газу переданого за добу, м3
C6: АГРС 1/3 с.Червонопопівка
A7: 1 | B7: 40.7267 | C7: 2087.39 | D7: 2087.39
A8: 2 | B8: 40.7267 | C8: 1977.08 | D8: 1977.08
A9: 3 | B9: 40.7267 | C9: 1933.97 | D9: 1933.97
A10: 4 | B10: 40.7267 | C10: 1896.79 | D10: 1896.79
A11: 5 | B11: 40.7267 | C11: 1942.88 | D11: 1942.88
A12: 6 | B12: 40.69 | C12: 1764.9 | D12: 1764.9
A13: 7 | B13: 40.69 | C13: 1906.67 | D13: 1906.67
A14: 8 | B14: 40.69 | C14: 1962.96 | D14: 1962.96
A15: 9 | B15: 40.69 | C15: 1798.58 | D15: 1798.58
A16: 10 | B16: 40.69 | C16: 1818.75 | D16: 1818.75
A17: 11 | B17: 40.69 | C17: 1778.53 | D17: 1778.53
A18: 12 | B18: 40.69 | C18: 1900.37 | D18: 1900.37
A19: 13 | B19: 40.6767 | C19: 1883.34 | D19: 1883.34
A20: 14 | B20: 40.7 | C20: 1855.13 | D20: 1855.13
A21: 15 | B21: 40.7 | C21: 1723.11 | D21: 1723.11
A22: 16 | B22: 40.7 | C22: 1859.43 | D22: 1859.43
A23: 17 | B23: 40.7 | C23: 1870.05 | D23: 1870.05
A24: 18 | B24: 40.7 | C24: 2024.8 | D24: 2024.8
A25: 19 | B25: 40.7 | C25: 2048.86 | D25: 2048.86
A26: 20 | B26: 40.7071 | C26: 1938.32 | D26: 1938.32
A27: 21 | B27: 40.7071 | C27: 1956.94 | D27: 1956.94
A28: 22 | B28: 40.7071 | C28: 1846.65 | D28: 1846.65
A29: 23 | B29: 40.7071 | C29: 1625.13 | D29: 1625.13
A30: 24 | B30: 40.7071 | C30: 1543.12 | D30: 1543.12
A31: 25 | B31: 40.7071 | C31: 1587.54 | D31: 1587.54
A32: 26 | B32: 40.7071 | C32: 1758.18 | D32: 1758.18
A33: 27 | B33: 40.6878 | C33: 2042.93 | D33: 2042.93
A34: 28 | B34: 40.6878 | C34: 1966.18 | D34: 1966.18
A35: 29 | B35: 40.6878 | C35: 1755.47 | D35: 1755.47
A36: 30 | B36: 40.6878 | C36: 1871.02 | D36: 1871.02
A37: 31 | B37: 40.6878 | C37: 1880.17 | D37: 1880.17
A38: Загальний обсяг газу, м3 | C38: =SUM(C7:C37) -> 57805.24 | D38: =SUM(D7:D37) -> 57805.24
A39: Енергія, МДж | C39: =SUMPRODUCT(B7:B37,C7:C37) -> 2352733.68 | D39: =SUMPRODUCT(B7:B37,D7:D37) -> 2352733.68
A40: Теплота згоряння (середньозважене значення за місяць), МДж/м³ | C40: =C39/C38 -> 40.7010451 | D40: =D39/D38 -> 40.7010451
A41: Теплота згоряння (середньозважене значення за місяць), ккал/м³ | C41: =C40*238.8459 -> 9721.277749 | D41: =D40*238.8459 -> 9721.277749
A42: Теплота згоряння (середньозважене значення за місяць), кВт*год./м³ | C42: =C40/3.6 -> 11.30584586 | D42: =D40/3.6 -> 11.30584586

Sheet додаток
A2: Додаток до Паспорту фізико-хімічних показників природного газу №645
A4: Область | B4: ГРС, прямий споживач | C4: Cередньозважене значення вищої теплоти згоряння
C5: МДж/м³ | D5: ккал/м³ | E5: кВт*год./м³
A6: Луганська область | B6: АГРС 1/3 с.Червонопопівка | C6: 40.7 | D6: 9721 | E6: 11.31
A7: Середньозважене значення вищої теплоти згоряння по маршруту № 645 | C7: 40.7 | D7: 9721 | E7: 11.31
A11: Начальник управління Сєвєродонецького ЛВУМГ Головко Ю.О.
A12: Підрозділу підприємства, якому підпорядкована лабораторія | D12: прізвище | E12: підпис | F12: дата
A13: Інженер ІІ кат.вимірювальної хіміко-аналітичної лабораторії Єрьоменко М.О.
A14: Лабораторія, де здійснювалось вимірювання газу | D14: прізвище | E14: підпис | F14: дата
A15: Начальник служби метрології Ісаєв В.С.
A16: Підрозділу, відповідального за облік газу за маршрутом | D16: прізвище | E16: підпис | F16: дата

Sheet variablesList (hidden)
A1: 3 | B1: x:\gaysin | C1: 10, 11, 24, 25, 127, 128, 132, 180, 207, 215 | D1: x:\
B2: x:\Illinci
B3: x:\Talne
